[Event "36th German Seniors-ch-65 2024"]
[Site "Bad Wildungen"]
[Date "2024.08.29"]
[Round "7.21"]
[White "Ehlert, Horst"]
[Black "Schmidt, Gerhard"]
[Result "1/2-1/2"]
[ECO "D04"]
[WhiteElo "1951"]
[BlackElo "2088"]
[Annotator "NA RC"]
[PlyCount "113"]
[EventDate "2024.08.22"]
[EventType "swiss"]
[EventCountry "GER"]
[SourceTitle "playchess.com"]
[Source "ChessBase"]
[SourceQuality "1"]
[TimeControl "40/5400+30:1800+30"]

1. d4 {[%emt 0:00:21]} Nf6 {[%emt 0:00:11]} 2. Nf3 {[%emt 0:00:38]} g6 {[%emt 0:00:13]} 3. Nbd2 {[%emt 0:00:55]} d5 {[%emt 0:00:35]} 4. e3 {[%emt 0:00:16]} Bg7 {[%emt 0:00:49]} 5. Bd3 {[%emt 0:00:13]} c5 {[%emt 0:01:31]} 6. c3 {[%emt 0:00:09]} O-O {[%emt 0:03:15]} 7. O-O {[%emt 0:01:24]} Nc6 {[%emt 0:04:16]} 8. h3 {[%emt 0:06:52] D04: Colle System.} Nd7 {[%emt 0:02:23]} 9. e4 {[%emt 0:19:25]} dxe4 {[%emt 0:02:54]} 10. Bxe4 {[%emt 0:00:56]} cxd4 {[%emt 0:02:26]} 11. Bxc6 {[%emt 0:06:34]} (11. cxd4 $15 Nxd4 12. Nxd4 Bxd4 13. Nb3) 11... dxc3 {[%emt 0:03:05]} ({But not} 11... bxc6 12. Nxd4 Qc7 13. Re1 $15) 12. Bxd7 {[%emt 0:18:49]} cxd2 {[%emt 0:00:59]} 13. Bxc8 {[%emt 0:11:23]} dxc1=Q {[%emt 0:01:16]} 14. Rxc1 {[%emt 0:00:55]} Rxc8 {[%emt 0:01:13]} 15. Qb3 {[%emt 0:03:07]} Rxc1 {[%emt 0:11:00]} 16. Rxc1 {[%emt 0:00:13]} Qd7 {[%emt 0:04:43]} 17. Qc2 {[%emt 0:05:32]} Rd8 {[%emt 0:01:37]} 18. b3 {[%emt 0:01:18]} Bf6 {[%emt 0:01:12]} 19. Qc7 {[%emt 0:07:10]} Kg7 {[%emt 0:05:35]} 20. Qxd7 {[%emt 0:01:54]} Rxd7 {[%emt 0:00:13]} 21. g4 {[%emt 0:00:13]} h6 {[%emt 0:05:09]} 22. Kf1 {[%emt 0:01:14]} e6 {[%emt 0:09:15]} 23. Ke2 {[%emt 0:00:23]} Kf8 {[%emt 0:06:59]} 24. Rc8+ {[%emt 0:01:56]} Ke7 {[%emt 0:03:03]} 25. Ra8 {[%emt 0:00:13]} a6 {[%emt 0:00:39]} 26. Rc8 {[%emt 0:00:06]} Bd4 {[%emt 0:09:02]} 27. Rc4 {[%emt 0:02:12]} Bb6 {[%emt 0:02:05]} 28. Rb4 {[%emt 0:02:26]} Ba5 {[%emt 0:00:19]} 29. Ra4 {[%emt 0:00:48]} Bc7 {[%emt 0:00:38]} 30. Rc4 {[%emt 0:00:11]} Bd6 {[%emt 0:02:30]} 31. Rc2 {[%emt 0:02:41]} Rc7 {[%emt 0:00:28]} 32. Rxc7+ {[%emt 0:00:32]} Bxc7 {[%emt 0:00:09]} 33. Nd2 {[%emt 0:00:36]} f5 {[%emt 0:00:34]} 34. f3 {[%emt 0:01:02]} b5 {[%emt 0:01:19]} 35. Ke3 {[%emt 0:02:35]} e5 {[%emt 0:05:53]} 36. b4 {[%emt 0:02:16]} Bd6 {[%emt 0:04:07]} 37. a3 {[%emt 0:00:04] [#]} a5 {[%emt 0:00:17]} 38. bxa5 {[%emt 0:00:20]} Bxa3 {[%emt 0:00:09]} 39. Nb3 {[%emt 0:00:35]} Kd7 {[%emt 0:00:25]} 40. gxf5 {[%emt 0:01:06]} gxf5 {[%emt 0:00:21]} 41. f4 {[%emt 0:30:29] [#]} e4 $1 {[%emt 0:30:35]} 42. Kd4 {[%emt 0:00:00]} (42. a6 $142 Kc7 43. Kd2) 42... Kd6 {[%emt 0:00:00]} 43. a6 {[%emt 0:00:00]} Bb2+ {[%emt 0:00:00]} 44. Ke3 {[%emt 0:00:00]} Kc6 {[%emt 0:00:00]} 45. Na5+ {[%emt 0:00:00]} Kb6 {[%emt 0:00:00]} 46. a7 {[%emt 0:00:00]} Kxa7 {[%emt 0:00:00]} 47. Nc6+ {[%emt 0:00:00]} Kb6 {[%emt 0:00:00]} 48. Ne7 {[%emt 0:00:00]} Bc1+ {[%emt 0:00:00]} 49. Kd4 $19 {[%emt 0:00:00]} e3 {[%emt 0:11:38]} 50. Kd3 {[%emt 0:00:00]} Kc5 {[%emt 0:00:00]} 51. Nxf5 {[%emt 0:00:00]} Kd5 {[%emt 0:00:00]} 52. Nxh6 {[%emt 0:02:43]} Ke6 {[%emt 0:00:00]} 53. Ng4 {[%emt 0:00:38]} Kf5 {[%emt 0:00:00]} 54. Nxe3+ {[%emt 0:00:51]} Kxf4 {[%emt 0:00:00]} 55. Nd5+ {[%emt 0:00:41]} Kg3 {[%emt 0:00:00]} 56. Nc3 {[%emt 0:00:28]} Kxh3 {[%emt 0:00:00]} 57. Kd4 {[%emt 0:03:37]} 1/2-1/2

[Event "36th German Seniors-ch-65 2024"]
[Site "Bad Wildungen"]
[Date "2024.08.29"]
[Round "7.22"]
[White "Skorna, Ullrich"]
[Black "Schaefer, Martin"]
[Result "1-0"]
[ECO "B20"]
[WhiteElo "2058"]
[BlackElo "1982"]
[Annotator "RC"]
[PlyCount "53"]
[EventDate "2024.08.22"]
[EventType "swiss"]
[EventCountry "GER"]
[SourceTitle "playchess.com"]
[Source "ChessBase"]
[SourceQuality "1"]
[TimeControl "40/5400+30:1800+30"]

1. e4 {[%emt 0:00:11]} c5 {[%emt 0:00:02]} 2. b3 {[%emt 0:00:07]} g6 {[%emt 0:00:08]} 3. Bb2 {[%emt 0:00:06]} Nf6 {[%emt 0:00:07]} 4. e5 {[%emt 0:01:54]} Nd5 {[%emt 0:00:16]} 5. g3 {[%emt 0:00:27]} Bg7 {[%emt 0:03:41]} 6. Bg2 {[%emt 0:00:11]} e6 {[%emt 0:02:44]} 7. Na3 {[%emt 0:02:29]} d6 {[%emt 0:01:49]} 8. f4 {[%emt 0:01:17]} O-O {[%emt 0:10:24]} 9. Nc4 {[%emt 0:00:48]} dxe5 {[%emt 0:03:47]} 10. Nxe5 {[%emt 0:02:42]} Nxf4 {[%emt 0:07:58]} 11. gxf4 {[%emt 0:00:14]} Qh4+ {[%emt 0:00:09]} 12. Kf1 {[%emt 0:00:16]} Qxf4+ {[%emt 0:00:09]} 13. Ngf3 {[%emt 0:00:12]} g5 {[%emt 0:02:53]} 14. Bh3 {[%emt 0:04:39]} Nd7 {[%emt 0:07:57]} 15. Nd3 {[%emt 0:00:47]} Qd6 {[%emt 0:04:15]} 16. Bxg7 {[%emt 0:00:19]} Kxg7 {[%emt 0:00:04]} 17. Nxg5 {[%emt 0:01:08]} Nf6 {[%emt 0:02:42]} 18. Qf3 {[%emt 0:01:58]} e5 {[%emt 0:02:01]} 19. Re1 {[%emt 0:05:50]} Bxh3+ {[%emt 0:02:15]} 20. Qxh3 {[%emt 0:00:57]} Rae8 {[%emt 0:01:09]} 21. Rg1 {[%emt 0:00:32]} Kh8 {[%emt 0:00:14]} 22. Qh6 {[%emt 0:03:18]} Qa6 {[%emt 0:11:47]} 23. Ne6 {[%emt 0:01:35]} Nh5 {[%emt 0:00:28]} 24. Qxh5 {[%emt 0:02:20]} Rxe6 {[%emt 0:03:29]} 25. Rxe5 {[%emt 0:03:49]} Qxa2 {[%emt 0:01:53]} 26. Rxe6 {[%emt 0:01:14]} Qa1+ {[%emt 0:01:35]} 27. Re1 {[%emt 0:00:23]} 1-0

[Event "36th German Seniors-ch-65 2024"]
[Site "Bad Wildungen"]
[Date "2024.08.30"]
[Round "8.1"]
[White "Podat, Vladimir"]
[Black "Buchal, Stephan"]
[Result "1/2-1/2"]
[ECO "B08"]
[WhiteElo "2157"]
[BlackElo "2215"]
[Annotator "RC"]
[PlyCount "32"]
[EventDate "2024.08.22"]
[EventType "swiss"]
[EventCountry "GER"]
[SourceTitle "playchess.com"]
[Source "ChessBase"]
[SourceQuality "1"]
[TimeControl "40/5400+30:1800+30"]

1. e4 {[%emt 0:00:07]} d6 {[%emt 0:00:23]} 2. d4 {[%emt 0:00:35]} Nf6 {[%emt 0:00:10]} 3. Nc3 {[%emt 0:00:10]} g6 {[%emt 0:00:08]} 4. Nf3 {[%emt 0:00:15]} Bg7 {[%emt 0:00:13]} 5. Be3 {[%emt 0:00:19]} c6 {[%emt 0:02:40]} 6. Qd2 {[%emt 0:00:23]} b5 {[%emt 0:03:27]} 7. Bd3 {[%emt 0:00:29]} O-O {[%emt 0:00:39]} 8. Bh6 {[%emt 0:01:08]} Bg4 {[%emt 0:01:02]} 9. h4 {[%emt 0:00:54]} Bxf3 {[%emt 0:03:13]} 10. gxf3 {[%emt 0:00:30]} Nh5 {[%emt 0:00:21]} 11. Bxg7 {[%emt 0:01:48]} Kxg7 {[%emt 0:00:05]} 12. f4 {[%emt 0:00:09]} Nd7 {[%emt 0:06:45]} 13. Be2 {[%emt 0:05:19]} b4 {[%emt 0:03:13]} 14. Nd1 {[%emt 0:02:28]} Qa5 {[%emt 0:15:58]} 15. e5 {[%emt 0:11:18]} Kh8 {[%emt 0:11:17]} 16. Bxh5 {[%emt 0:00:52]} Qd5 {[%emt 0:01:23]} 1/2-1/2

[Event "36th German Seniors-ch-65 2024"]
[Site "Bad Wildungen"]
[Date "2024.08.30"]
[Round "8.2"]
[White "Okrajek, Alexander"]
[Black "Klundt, Klaus"]
[Result "1/2-1/2"]
[ECO "D05"]
[WhiteElo "2172"]
[BlackElo "2264"]
[Annotator "RC"]
[PlyCount "33"]
[EventDate "2024.08.22"]
[EventType "swiss"]
[EventCountry "GER"]
[SourceTitle "playchess.com"]
[Source "ChessBase"]
[SourceQuality "1"]
[TimeControl "40/5400+30:1800+30"]

1. d4 {[%emt 0:00:39]} Nf6 {[%emt 0:00:10]} 2. Nf3 {[%emt 0:00:42]} d5 {[%emt 0:00:17]} 3. e3 {[%emt 0:00:24]} e6 {[%emt 0:01:17]} 4. Nbd2 {[%emt 0:01:46]} c5 {[%emt 0:01:02]} 5. c3 {[%emt 0:01:20]} Nc6 {[%emt 0:00:33]} 6. Bd3 {[%emt 0:00:40]} Be7 {[%emt 0:01:19]} 7. O-O {[%emt 0:01:29]} Qc7 {[%emt 0:02:00]} 8. a3 {[%emt 0:06:22]} O-O {[%emt 0:04:55]} 9. dxc5 {[%emt 0:05:25]} Bxc5 {[%emt 0:00:41]} 10. b4 {[%emt 0:01:20]} Be7 {[%emt 0:00:33]} 11. c4 {[%emt 1:15:53]} Ne5 {[%emt 0:22:18]} 12. Nxe5 {[%emt 0:00:00]} Qxe5 {[%emt 0:00:01]} 13. Rb1 {[%emt 0:00:00]} Rd8 {[%emt 0:03:19]} 14. Bb2 {[%emt 0:00:00]} Qd6 {[%emt 0:05:05]} 15. Nf3 {[%emt 0:00:00]} dxc4 {[%emt 0:01:46]} 16. Bxc4 {[%emt 0:00:00]} Qxd1 {[%emt 0:00:51]} 17. Rfxd1 {[%emt 0:00:00]} 1/2-1/2

[Event "36th German Seniors-ch-65 2024"]
[Site "Bad Wildungen"]
[Date "2024.08.30"]
[Round "8.3"]
[White "Juhnke, Juergen"]
[Black "Namyslo, Holger"]
[Result "1-0"]
[ECO "B94"]
[WhiteElo "2259"]
[BlackElo "2140"]
[Annotator "RC"]
[PlyCount "99"]
[EventDate "2024.08.22"]
[EventType "swiss"]
[EventCountry "GER"]
[SourceTitle "playchess.com"]
[Source "ChessBase"]
[SourceQuality "1"]
[TimeControl "40/5400+30:1800+30"]

1. e4 {[%emt 0:00:03]} c5 {[%emt 0:00:18]} 2. Nf3 {[%emt 0:00:07]} d6 {[%emt 0:00:09]} 3. d4 {[%emt 0:00:05]} cxd4 {[%emt 0:00:03]} 4. Nxd4 {[%emt 0:00:05]} Nf6 {[%emt 0:00:04]} 5. Nc3 {[%emt 0:00:08]} a6 {[%emt 0:00:43]} 6. Bg5 {[%emt 0:00:07]} Nbd7 {[%emt 0:00:24]} 7. f4 {[%emt 0:00:08]} Qc7 {[%emt 0:00:50]} 8. Qf3 {[%emt 0:00:31]} h6 {[%emt 0:03:41]} 9. Bxf6 {[%emt 0:00:11]} Nxf6 {[%emt 0:00:13]} 10. f5 {[%emt 0:00:12]} Qc5 {[%emt 0:00:58]} 11. O-O-O {[%emt 0:00:25]} g6 {[%emt 0:00:45]} 12. Nd5 {[%emt 0:03:07]} Nxd5 {[%emt 0:11:41]} 13. exd5 {[%emt 0:00:08]} gxf5 {[%emt 0:04:49]} 14. Bd3 {[%emt 0:03:52]} Bd7 {[%emt 0:12:56]} 15. Bxf5 {[%emt 0:01:56]} Bxf5 {[%emt 0:02:02]} 16. Qxf5 {[%emt 0:02:07]} Bg7 {[%emt 0:00:52]} 17. c3 {[%emt 0:13:19]} Bf6 {[%emt 0:05:27]} 18. Rhe1 {[%emt 0:02:23]} Kd8 {[%emt 0:02:23]} 19. Kb1 {[%emt 0:03:28]} Kc7 {[%emt 0:02:44]} 20. Rxe7+ {[%emt 0:06:39]} Bxe7 {[%emt 0:00:09]} 21. Qxf7 {[%emt 0:00:08]} Kb6 {[%emt 0:01:46]} 22. Ne6 {[%emt 0:00:24]} Qe3 {[%emt 0:06:28]} 23. Qxe7 {[%emt 0:00:11]} Qe4+ {[%emt 0:00:10]} 24. Ka1 {[%emt 0:00:37]} Qe5 {[%emt 0:00:15]} 25. Qc7+ {[%emt 0:03:49]} Ka7 {[%emt 0:00:19]} 26. Nc5 {[%emt 0:00:14]} Rab8 {[%emt 0:01:17]} 27. Nd7 {[%emt 0:00:20]} Qh5 {[%emt 0:07:56]} 28. Rb1 {[%emt 0:04:30]} Qxd5 {[%emt 0:01:58]} 29. Qb6+ {[%emt 0:01:13]} Ka8 {[%emt 0:00:07]} 30. Nxb8 {[%emt 0:00:29]} Rxb8 {[%emt 0:00:52]} 31. Qf2 {[%emt 0:01:43]} Re8 {[%emt 0:00:43]} 32. a3 {[%emt 0:04:53]} Qh5 {[%emt 0:05:08]} 33. g3 {[%emt 0:01:09]} Re2 {[%emt 0:12:34]} 34. Qf8+ {[%emt 0:02:20]} Re8 {[%emt 0:00:50]} 35. Qxd6 {[%emt 0:01:51]} Qxh2 {[%emt 0:00:11]} 36. Rf1 {[%emt 0:00:53]} Qe2 {[%emt 0:03:41]} 37. Rf6 {[%emt 0:12:03]} h5 {[%emt 0:00:41]} 38. Qc7 {[%emt 0:04:13]} Qe5 {[%emt 0:04:48]} 39. Rd6 {[%emt 0:07:52]} Ka7 {[%emt 0:03:02]} 40. Ka2 {[%emt 0:05:46]} Qe4 {[%emt 0:02:46]} 41. Qc5+ {[%emt 0:31:59]} Ka8 {[%emt 0:30:31]} 42. c4 {[%emt 0:12:16]} Qg4 {[%emt 0:01:27]} 43. Qd5 {[%emt 0:02:53]} Qxg3 {[%emt 0:00:00]} 44. Rxa6+ {[%emt 0:00:00]} Kb8 {[%emt 0:00:00]} 45. Qxh5 {[%emt 0:00:00]} Qg8 {[%emt 0:00:00]} 46. Qh2+ {[%emt 0:00:00]} Kc8 {[%emt 0:00:00]} 47. Ra8+ {[%emt 0:00:00]} Kd7 {[%emt 0:00:00]} 48. Qd2+ {[%emt 0:00:00]} Kc7 {[%emt 0:00:00]} 49. Qa5+ {[%emt 0:00:00]} b6 {[%emt 0:00:00]} 50. Qa7+ {[%emt 0:00:00]} 1-0

[Event "36th German Seniors-ch-65 2024"]
[Site "Bad Wildungen"]
[Date "2024.08.30"]
[Round "8.4"]
[White "Rosen, Bernd"]
[Black "Matthey, Harald"]
[Result "1-0"]
[ECO "A37"]
[WhiteElo "2245"]
[BlackElo "2062"]
[Annotator "RC"]
[PlyCount "57"]
[EventDate "2024.08.22"]
[EventType "swiss"]
[EventCountry "GER"]
[SourceTitle "playchess.com"]
[Source "ChessBase"]
[SourceQuality "1"]
[TimeControl "40/5400+30:1800+30"]

1. c4 {[%emt 0:00:02]} c5 {[%emt 0:00:12]} 2. g3 {[%emt 0:00:07]} Nc6 {[%emt 0:00:20]} 3. Bg2 {[%emt 0:00:05]} g6 {[%emt 0:00:11]} 4. Nc3 {[%emt 0:00:07]} Bg7 {[%emt 0:00:14]} 5. Nf3 {[%emt 0:00:30]} e6 {[%emt 0:00:26]} 6. d4 {[%emt 0:00:10]} Nxd4 {[%emt 0:16:49]} 7. Nxd4 {[%emt 0:00:25]} cxd4 {[%emt 0:00:14]} 8. Ne4 {[%emt 0:00:33]} d6 {[%emt 0:07:52]} 9. Qa4+ {[%emt 0:01:15]} Ke7 {[%emt 0:02:44]} 10. Qa3 {[%emt 0:03:44]} f5 {[%emt 0:04:24]} 11. Bg5+ {[%emt 0:08:08]} Nf6 {[%emt 0:03:19]} 12. Nxf6 {[%emt 0:01:15]} Bxf6 {[%emt 0:00:13]} 13. Bxf6+ {[%emt 0:01:05]} Kxf6 {[%emt 0:00:09]} 14. O-O {[%emt 0:00:46]} Qb6 {[%emt 0:02:28]} 15. Rfd1 {[%emt 0:01:28]} Rd8 {[%emt 0:00:34]} 16. Rd3 {[%emt 0:03:09]} Qc5 {[%emt 0:11:05]} 17. b4 {[%emt 0:01:25]} Qxc4 {[%emt 0:01:39]} 18. Rc1 {[%emt 0:00:11]} Qb5 {[%emt 0:00:08]} 19. Rxd4 {[%emt 0:03:09]} a5 {[%emt 0:08:57]} 20. e4 {[%emt 0:26:44]} e5 {[%emt 0:04:53]} 21. Rd5 {[%emt 0:01:56]} Qxb4 {[%emt 0:00:23]} 22. Qd3 {[%emt 0:00:31]} Ra6 {[%emt 0:11:18]} 23. f4 {[%emt 0:14:58]} fxe4 {[%emt 0:10:26]} 24. Bxe4 {[%emt 0:04:21]} Be6 {[%emt 0:08:55]} 25. fxe5+ {[%emt 0:00:27]} Ke7 {[%emt 0:00:30]} 26. Rb1 {[%emt 0:06:31]} Qa4 {[%emt 0:00:40]} 27. Rxb7+ {[%emt 0:01:35]} Rd7 {[%emt 0:02:19]} 28. Qxa6 {[%emt 0:00:14]} Bxd5 {[%emt 0:00:22]} 29. Qxd6+ {[%emt 0:00:19]} 1-0

[Event "36th German Seniors-ch-65 2024"]
[Site "Bad Wildungen"]
[Date "2024.08.30"]
[Round "8.5"]
[White "Kaeding, Rainer"]
[Black "Heinig, Wolfram"]
[Result "1-0"]
[ECO "B11"]
[WhiteElo "2116"]
[BlackElo "2215"]
[Annotator "RC"]
[PlyCount "51"]
[EventDate "2024.08.22"]
[EventType "swiss"]
[EventCountry "GER"]
[SourceTitle "playchess.com"]
[Source "ChessBase"]
[SourceQuality "1"]
[TimeControl "40/5400+30:1800+30"]

1. e4 {[%emt 0:00:05]} c6 {[%emt 0:00:07]} 2. Nc3 {[%emt 0:00:27]} d5 {[%emt 0:00:11]} 3. Nf3 {[%emt 0:00:27]} Nf6 {[%emt 0:00:24]} 4. e5 {[%emt 0:00:48]} Ne4 {[%emt 0:00:06]} 5. Ne2 {[%emt 0:00:53]} Qb6 {[%emt 0:01:12]} 6. d4 {[%emt 0:00:07]} c5 {[%emt 0:01:01]} 7. Ng3 {[%emt 0:00:43]} Bg4 {[%emt 0:03:21]} 8. Bd3 {[%emt 0:03:28]} Nc6 {[%emt 0:04:12]} 9. Bxe4 {[%emt 0:13:17]} dxe4 {[%emt 0:00:38]} 10. dxc5 {[%emt 0:01:50]} Qxc5 {[%emt 0:07:03]} 11. Nxe4 {[%emt 0:03:44]} Qb4+ {[%emt 0:02:51]} 12. Ned2 {[%emt 0:00:05]} Nxe5 {[%emt 0:03:23]} 13. O-O {[%emt 0:00:52]} Rd8 {[%emt 0:11:54]} 14. Qe2 {[%emt 0:03:31]} Nxf3+ {[%emt 0:01:41]} 15. Nxf3 {[%emt 0:00:07]} e6 {[%emt 0:00:22]} 16. h3 {[%emt 0:05:53]} Bh5 {[%emt 0:05:12]} 17. Be3 {[%emt 0:03:22]} Bc5 {[%emt 0:06:03]} 18. Rfd1 {[%emt 0:09:23]} O-O {[%emt 0:02:08]} 19. c3 {[%emt 0:02:03]} Qb6 {[%emt 0:12:04]} 20. Bxc5 {[%emt 0:01:54]} Qxc5 {[%emt 0:00:04]} 21. Qe4 {[%emt 0:07:29]} Qb6 {[%emt 0:02:21]} 22. b3 {[%emt 0:02:50]} Qa6 {[%emt 0:01:13]} 23. Rxd8 {[%emt 0:04:11]} Rxd8 {[%emt 0:00:09]} 24. Qh4 {[%emt 0:01:40]} Qa5 {[%emt 0:03:41]} 25. b4 {[%emt 0:01:00]} Qd5 {[%emt 0:00:25]} 26. c4 {[%emt 0:00:27]} 1-0

[Event "36th German Seniors-ch-65 2024"]
[Site "Bad Wildungen"]
[Date "2024.08.30"]
[Round "8.6"]
[White "Vatter, Hans-Joachim"]
[Black "Schrems, Hermann"]
[Result "1-0"]
[ECO "B31"]
[WhiteElo "2212"]
[BlackElo "2118"]
[Annotator "RC"]
[PlyCount "75"]
[EventDate "2024.08.22"]
[EventType "swiss"]
[EventCountry "GER"]
[SourceTitle "playchess.com"]
[Source "ChessBase"]
[SourceQuality "1"]
[TimeControl "40/5400+30:1800+30"]

1. e4 {[%emt 0:00:08]} c5 {[%emt 0:00:31]} 2. Nf3 {[%emt 0:00:43]} Nc6 {[%emt 0:00:06]} 3. Bb5 {[%emt 0:00:19]} g6 {[%emt 0:00:51]} 4. O-O {[%emt 0:01:37]} Bg7 {[%emt 0:01:15]} 5. Re1 {[%emt 0:06:30]} e5 {[%emt 0:01:49]} 6. Bxc6 {[%emt 0:03:52]} dxc6 {[%emt 0:00:02]} 7. d3 {[%emt 0:00:15]} Qc7 {[%emt 0:01:45]} 8. Nbd2 {[%emt 0:03:28]} Nf6 {[%emt 0:00:21]} 9. Nc4 {[%emt 0:00:37]} Nd7 {[%emt 0:00:08]} 10. a4 {[%emt 0:00:07]} Nf8 {[%emt 0:00:05]} 11. a5 {[%emt 0:00:12]} Be6 {[%emt 0:01:17]} 12. Be3 {[%emt 0:01:06]} Bxc4 {[%emt 0:08:09]} 13. dxc4 {[%emt 0:01:38]} Ne6 {[%emt 0:00:09]} 14. c3 {[%emt 0:01:37]} h6 {[%emt 0:00:49]} 15. Qc1 {[%emt 0:19:13]} Qe7 {[%emt 0:01:05]} 16. Re2 {[%emt 0:03:40]} g5 {[%emt 0:06:13]} 17. Nd2 {[%emt 0:13:39]} O-O {[%emt 0:00:27]} 18. Nf1 {[%emt 0:00:19]} Nf4 {[%emt 0:01:51]} 19. Rd2 {[%emt 0:01:06]} Rad8 {[%emt 0:02:42]} 20. Ng3 {[%emt 0:01:18]} Rxd2 {[%emt 0:00:19]} 21. Qxd2 {[%emt 0:01:40]} Rd8 {[%emt 0:00:07]} 22. Qc2 {[%emt 0:02:05]} Bf8 {[%emt 0:01:51]} 23. a6 {[%emt 0:03:59]} bxa6 {[%emt 0:01:12]} 24. Nf5 {[%emt 0:01:39]} Qb7 {[%emt 0:00:12]} 25. h4 {[%emt 0:02:12]} f6 {[%emt 0:00:32]} 26. Bxf4 {[%emt 0:00:18]} exf4 {[%emt 0:01:20]} 27. Qe2 {[%emt 0:02:09]} Rb8 {[%emt 0:00:51]} 28. Rd1 {[%emt 0:05:41]} Qf7 {[%emt 0:02:05]} 29. Rd6 {[%emt 0:03:06]} Re8 {[%emt 0:11:05]} 30. Rxc6 {[%emt 0:03:04]} Qg6 {[%emt 0:00:46]} 31. Qd3 {[%emt 0:01:11]} gxh4 {[%emt 0:00:42]} 32. e5 {[%emt 0:03:51]} Qg5 {[%emt 0:00:48]} 33. Rxf6 {[%emt 0:07:19]} h3 {[%emt 0:00:56]} 34. Rg6+ {[%emt 0:00:14]} Qxg6 {[%emt 0:00:24]} 35. Ne7+ {[%emt 0:00:01]} Rxe7 {[%emt 0:00:15]} 36. Qxg6+ {[%emt 0:00:02]} Rg7 {[%emt 0:00:07]} 37. Qe6+ {[%emt 0:00:14]} Kh7 {[%emt 0:00:09]} 38. Qxh3 {[%emt 0:09:21]} 1-0

[Event "36th German Seniors-ch-65 2024"]
[Site "Bad Wildungen"]
[Date "2024.08.30"]
[Round "8.7"]
[White "Zimmermann, Rolf"]
[Black "Chevelevitch, Evgueni"]
[Result "1/2-1/2"]
[ECO "A36"]
[WhiteElo "2107"]
[BlackElo "2334"]
[Annotator "RC"]
[PlyCount "114"]
[EventDate "2024.08.22"]
[EventType "swiss"]
[EventCountry "GER"]
[SourceTitle "playchess.com"]
[Source "ChessBase"]
[SourceQuality "1"]
[TimeControl "40/5400+30:1800+30"]

1. c4 {[%emt 0:00:07]} g6 {[%emt 0:00:15]} 2. g3 {[%emt 0:00:17]} Bg7 {[%emt 0:00:09]} 3. Bg2 {[%emt 0:00:12]} c5 {[%emt 0:00:16]} 4. Nc3 {[%emt 0:00:47]} Nc6 {[%emt 0:00:15]} 5. e3 {[%emt 0:00:32]} Nh6 {[%emt 0:06:05]} 6. Nge2 {[%emt 0:02:11]} Nf5 {[%emt 0:00:29]} 7. b3 {[%emt 0:00:55]} d6 {[%emt 0:02:30]} 8. Bb2 {[%emt 0:00:33]} Bd7 {[%emt 0:01:58]} 9. d3 {[%emt 0:07:59]} Rb8 {[%emt 0:01:18]} 10. Qd2 {[%emt 0:01:10]} Qa5 {[%emt 0:07:39]} 11. O-O {[%emt 0:03:46]} a6 {[%emt 0:02:37]} 12. Rfd1 {[%emt 0:04:45]} b5 {[%emt 0:15:58]} 13. Bxc6 {[%emt 0:27:16]} Bxc6 {[%emt 0:00:32]} 14. e4 {[%emt 0:09:31]} Nd4 {[%emt 0:00:41]} 15. Nxd4 {[%emt 0:00:10]} Bxd4 {[%emt 0:01:54]} 16. Rab1 {[%emt 0:02:42]} e6 {[%emt 0:06:23]} 17. Ne2 {[%emt 0:03:39]} Qxd2 {[%emt 0:00:12]} 18. Rxd2 {[%emt 0:00:01]} Bxb2 {[%emt 0:00:09]} 19. Rbxb2 {[%emt 0:00:18]} Ke7 {[%emt 0:00:49]} 20. f3 {[%emt 0:01:30]} f5 {[%emt 0:00:48]} 21. Nc3 {[%emt 0:02:02]} Rhf8 {[%emt 0:04:31]} 22. Re2 {[%emt 0:01:17]} fxe4 {[%emt 0:08:36]} 23. fxe4 {[%emt 0:00:14]} Rf3 {[%emt 0:01:12]} 24. Rbd2 {[%emt 0:01:55]} Rff8 {[%emt 0:07:34]} 25. Rf2 {[%emt 0:01:11]} b4 {[%emt 0:00:22]} 26. Ne2 {[%emt 0:01:42]} a5 {[%emt 0:00:20]} 27. Nc1 {[%emt 0:01:00]} a4 {[%emt 0:03:40]} 28. Rxf8 {[%emt 0:01:03]} Rxf8 {[%emt 0:00:11]} 29. bxa4 {[%emt 0:03:46]} Ra8 {[%emt 0:00:16]} 30. Nb3 {[%emt 0:01:44]} Rxa4 {[%emt 0:00:14]} 31. e5 {[%emt 0:01:22]} dxe5 {[%emt 0:16:40]} 32. Nxc5 {[%emt 0:00:59]} Ra3 {[%emt 0:00:06]} 33. Nb3 {[%emt 0:01:15]} Ba4 {[%emt 0:01:32]} 34. Nc5 {[%emt 0:03:51]} Bc6 {[%emt 0:00:54]} 35. Kf2 {[%emt 0:04:49]} Kd6 {[%emt 0:00:20]} 36. Nb3 {[%emt 0:01:51]} Ba4 {[%emt 0:00:24]} 37. Nc1 {[%emt 0:01:36]} e4 {[%emt 0:04:22]} 38. Ke3 {[%emt 0:05:11]} Rc3 {[%emt 0:05:38]} 39. Ne2 {[%emt 0:01:13]} Rxd3+ {[%emt 0:00:08]} 40. Rxd3+ {[%emt 0:00:32]} exd3 {[%emt 0:00:01]} 41. Kxd3 {[%emt 0:30:45]} e5 {[%emt 0:30:31]} 42. Nc1 {[%emt 0:00:57]} Bd7 {[%emt 0:00:30]} 43. Ke3 {[%emt 0:00:00]} Be6 {[%emt 0:00:00]} 44. Nd3 {[%emt 0:00:00]} Bxc4 {[%emt 0:00:00]} 45. Nxb4 {[%emt 0:00:00]} Bb5 {[%emt 0:00:00]} 46. Nd3 {[%emt 0:00:00]} Bc6 {[%emt 0:00:00]} 47. Nb2 {[%emt 0:00:00]} Bb5 {[%emt 0:00:00]} 48. a4 {[%emt 0:00:00]} Bc6 {[%emt 0:00:00]} 49. a5 {[%emt 0:00:00]} Bb5 {[%emt 0:00:00]} 50. Nd3 {[%emt 0:00:00]} Bc4 {[%emt 0:00:00]} 51. h4 {[%emt 0:00:00]} h5 {[%emt 0:00:00]} 52. Nf2 {[%emt 0:00:00]} Ba6 {[%emt 0:00:00]} 53. Ne4+ {[%emt 0:00:00]} Kd5 {[%emt 0:00:00]} 54. Nf2 {[%emt 0:00:00]} Bb5 {[%emt 0:00:00]} 55. Nd3 {[%emt 0:00:00]} Kd6 {[%emt 0:00:00]} 56. Kd2 {[%emt 0:00:00]} Kd5 {[%emt 0:00:00]} 57. Ke3 {[%emt 0:00:00]} Kd6 {[%emt 0:00:00]} 1/2-1/2